fUST/lending_fUST_20250816
["ID","MTS","AMOUNT","RATE_DAILY","PERIOD"]
[379489429,1755313750968,-462.26132708,0.00021917,3]
[379489430,1755313750990,-460.0,0.00021917,3]
[379489431,1755313751011,-460.0,0.00021917,3]
[379489432,1755313751035,-480.0,0.00021917,3]
[379489433,1755313751058,-460.0,0.00021917,3]
[379489434,1755313751080,-460.0,0.00021917,3]
[379489435,1755313751103,-460.0,0.00021917,3]
[379489436,1755313751126,-480.0,0.00021917,3]
[379489437,1755313751152,-460.0,0.00021917,3]
[379489438,1755313751176,-460.0,0.00021917,3]
[379489439,1755313751200,-480.0,0.00021917,3]
[379489440,1755313751222,-463.74415624,0.00021917,3]
[379489441,1755313751248,-460.0,0.00021917,3]
[379489442,1755313751275,-514.84,0.00021917,3]
[379489443,1755313751301,-160.0,0.00021917,3]
[379489444,1755313751326,-464.30543105,0.00021917,3]
[379489445,1755313751351,-462.74553134,0.00021917,3]
[379489446,1755313751375,-460.0,0.00021917,3]
[379489447,1755313751400,-460.0,0.00021917,3]
[379489448,1755313751426,-480.0,0.00021917,3]
[379489449,1755313751453,-460.0,0.00021917,3]
[379489450,1755313751477,-480.0,0.00021917,3]
[379489451,1755313751502,-460.0,0.00021917,3]
[379489452,1755313751528,-460.0,0.00021917,3]
[379489453,1755313751557,-460.59032634,0.00021917,3]
[379489454,1755313751582,-460.0,0.00021917,3]
[379489455,1755313751607,-474.44,0.00021917,3]
[379489456,1755313751635,-461.07486032,0.00021917,3]
[379489457,1755313751660,-480.0,0.00021917,3]
[379489458,1755313751683,-461.14809802,0.00021917,3]
[379489459,1755313751707,-460.0,0.00021917,3]
[379489460,1755313751728,-460.0,0.00021917,3]
[379489461,1755313751748,-460.0,0.00021917,3]
[379489462,1755313751772,-480.0,0.00021917,3]
[379489463,1755313751793,-480.0,0.00021917,3]
[379489464,1755313751814,-460.0,0.00021917,3]
[379489465,1755313751835,-460.0,0.00021917,3]
[379489466,1755313751854,-480.0,0.00021917,3]
[379489467,1755313751875,-480.0,0.00021917,3]
[379489468,1755313751896,-460.0,0.00021917,3]
[379489469,1755313751916,-480.0,0.00021917,3]
[379489470,1755313751937,-460.82361357,0.00021917,3]
[379489471,1755313751958,-460.64300508,0.00021917,3]
[379489472,1755313751978,-460.0,0.00021917,3]
[379489473,1755313751999,-460.0,0.00021917,3]
[379489474,1755313752019,-460.0,0.00021917,3]
[379489475,1755313752038,-463.66804916,0.00021917,3]
[379489476,1755313752058,-1000.0,0.00021917,3]
[379489477,1755313752078,-460.0,0.00021917,3]
[379489478,1755313752099,-480.0,0.00021917,3]
[379489479,1755313752119,-460.0,0.00021917,3]
[379489480,1755313752139,-437.90615758,0.00021917,3]
[379489481,1755313752160,-460.0,0.00021917,3]
[379489482,1755313752182,-480.0,0.00021917,3]
[379489483,1755313752208,-460.58498551,0.00021917,3]
[379489484,1755313752230,-510.27,0.00021917,3]
[379489485,1755313752257,-460.0,0.00021917,3]
[379489486,1755313752277,-461.28538933,0.00021917,3]
[379489487,1755313752297,-460.0,0.00021917,3]
[379489488,1755313752316,-460.0,0.00021917,3]
[379489489,1755313752336,-460.67669061,0.00021917,3]
[379489490,1755313752356,-480.0,0.00021917,3]
[379489491,1755313752376,-460.0,0.00021917,3]
[379489492,1755313752396,-460.0,0.00021917,3]
[379489493,1755313752415,-460.88701223,0.00021917,3]
[379489494,1755313752433,-460.97656188,0.00021917,3]
[379489495,1755313752453,-460.0,0.00021917,3]
[379489496,1755313752473,-460.0,0.00021917,3]
[379489497,1755313752492,-480.0,0.00021917,3]
[379489498,1755313752511,-480.0,0.00021917,3]
[379489499,1755313752530,-480.0,0.00021917,3]
[379489500,1755313752549,-480.0,0.00021917,3]
[379489501,1755313752568,-480.0,0.00021917,3]
[379489502,1755313752586,-461.56368463,0.00021917,3]
[379489503,1755313752606,-480.0,0.00021917,3]
[379489504,1755313752626,-460.0,0.00021917,3]
[379489505,1755313752648,-480.0,0.00021917,3]
[379489506,1755313752668,-480.0,0.00021917,3]
[379489507,1755313752840,-480.0,0.00021917,3]
[379489508,1755313752860,-480.0,0.00021917,3]
[379489509,1755313752878,-480.0,0.00021917,3]
[379489510,1755313752897,-480.0,0.00021917,3]
[379489511,1755313752916,-480.0,0.00021917,3]
[379489512,1755313752935,-480.0,0.00021917,3]
[379489513,1755313752955,-480.0,0.00021917,3]
[379489514,1755313752975,-480.0,0.00021917,3]
[379489515,1755313752994,-480.0,0.00021917,3]
[379489516,1755313753014,-460.0,0.00021917,3]
[379489517,1755313753033,-460.40062225,0.00021917,3]
[379489518,1755313753052,-480.0,0.00021917,3]
[379489519,1755313753072,-462.47985447,0.00021917,3]
[379489520,1755313753092,-480.0,0.00021917,3]
[379489521,1755313753112,-480.0,0.00021917,3]
[379489522,1755313753132,-480.0,0.00021917,3]
[379489523,1755313753166,-480.0,0.00021917,3]
[379489524,1755313753187,-480.0,0.00021917,3]
[379489525,1755313753208,-480.0,0.00021917,3]
[379489526,1755313753228,-480.0,0.00021917,3]
[379489527,1755313753249,-480.0,0.00021917,3]
[379489528,1755313753268,-670.35,0.00021917,3]
[379489529,1755313753289,-460.0,0.00021917,3]
[379489530,1755313753308,-480.0,0.00021917,3]
[379489531,1755313753328,-498.61747842,0.00021917,3]
[379489532,1755313753348,-480.0,0.00021917,3]
[379489533,1755313753368,-480.0,0.00021917,3]
[379489534,1755313753388,-480.0,0.00021917,3]
[379489535,1755313753408,-480.0,0.00021917,3]
[379489536,1755313753429,-496.03,0.00021917,3]
[379489537,1755313753451,-480.0,0.00021917,3]
[379489538,1755313753472,-480.0,0.00021917,3]
[379489539,1755313753492,-480.0,0.00021917,3]
[379489540,1755313753513,-501.03,0.00021917,3]
[379489541,1755313753541,-480.0,0.00021917,3]
[379489542,1755313753563,-480.0,0.00021917,3]
[379489543,1755313753586,-460.0,0.00021917,3]
[379489544,1755313753610,-480.0,0.00021917,3]
[379489545,1755313753634,-460.0,0.00021917,3]
[379489546,1755313753655,-480.0,0.00021917,3]
[379489547,1755313753677,-446.76545114,0.00021917,3]
[379489548,1755313753701,-460.0,0.00021917,3]
[379489549,1755313753723,-480.0,0.00021917,3]
[379489550,1755313753747,-480.0,0.00021917,3]
[379489551,1755313753783,-460.0,0.00021917,3]
[379489552,1755313753808,-460.0,0.00021917,3]
[379489553,1755313753830,-460.0,0.00021917,3]
[379489554,1755313753853,-460.0,0.00021917,3]
[379489555,1755313753874,-480.0,0.00021917,3]
[379489556,1755313753895,-1088.91,0.00021917,3]
[379489557,1755313753918,-480.0,0.00021917,3]
[379489558,1755313753939,-461.01306846,0.00021917,3]
[379489560,1755313753962,-460.0,0.00021917,3]
[379489562,1755313753983,-480.0,0.00021917,3]
[379489563,1755313754010,-461.03147058,0.00021917,3]
[379489564,1755313754033,-480.0,0.00021917,3]
[379489565,1755313754055,-460.0,0.00021917,3]
[379489566,1755313754077,-461.4301808,0.00021917,3]
[379489567,1755313754099,-839.16,0.00021917,3]
[379489568,1755313754120,-569.54,0.00021917,3]
[379489569,1755313754142,-460.0,0.00021917,3]
[379489570,1755313754164,-461.2286293,0.00021917,3]
[379489571,1755313754187,-460.0,0.00021917,3]
[379489572,1755313754210,-460.0,0.00021917,3]
[379489573,1755313754233,-460.0,0.00021917,3]
[379489574,1755313754256,-460.0,0.00021917,3]
[379489575,1755313754278,-480.0,0.00021917,3]
[379489576,1755313754298,-460.0,0.00021917,3]
[379489577,1755313754321,-460.0,0.00021917,3]
[379489578,1755313754342,-460.0,0.00021917,3]
[379489579,1755313754363,-460.0,0.00021917,3]
[379489580,1755313754385,-480.0,0.00021917,3]
[379489581,1755313754406,-460.0,0.00021917,3]
[379489582,1755313754428,-462.47370422,0.00021917,3]
[379489583,1755313754449,-460.0,0.00021917,3]
[379489584,1755313754472,-480.0,0.00021917,3]
[379489585,1755313754493,-460.87144121,0.00021917,3]
[379489586,1755313754515,-669.67,0.00021917,3]
[379489587,1755313754536,-480.0,0.00021917,3]
[379489588,1755313754557,-480.0,0.00021917,3]
[379489589,1755313754578,-460.0,0.00021917,3]
[379489590,1755313754600,-2186.62,0.00021917,3]
[379489591,1755313754621,-460.0,0.00021917,3]
[379489592,1755313754643,-460.0,0.00021917,3]
[379489593,1755313754664,-460.0,0.00021917,3]
[379489594,1755313754684,-460.0,0.00021917,3]
[379489595,1755313754706,-480.0,0.00021917,3]
[379489596,1755313754727,-480.0,0.00021917,3]
[379489597,1755313754750,-480.0,0.00021917,3]
[379489598,1755313754774,-460.47775795,0.00021917,3]
[379489599,1755313754796,-480.0,0.00021917,3]
[379489600,1755313754818,-460.0,0.00021917,3]
[379489601,1755313754839,-480.0,0.00021917,3]
[379489602,1755313754862,-1548.82,0.00021917,3]
[379489603,1755313754883,-460.0,0.00021917,3]
[379489604,1755313754905,-480.0,0.00021917,3]
[379489605,1755313754931,-724.77,0.00021917,3]
[379489606,1755313754953,-177.37980783,0.00021917,3]
[379489607,1755313754978,-623.68,0.00021917,3]
[379489608,1755313755000,-621.74,0.00021917,3]
[379489609,1755313755022,-460.4720173,0.00021917,3]
[379489610,1755313755044,-480.0,0.00021917,3]
[379489611,1755313755066,-480.0,0.00021917,3]
[379489612,1755313755088,-460.0,0.00021917,3]
[379489613,1755313755109,-480.0,0.00021917,3]
[379489614,1755313755131,-480.0,0.00021917,3]
[379489615,1755313755154,-480.0,0.00021917,3]
[379489616,1755313755181,-480.0,0.00021917,3]
[379489617,1755313755208,-460.0,0.00021917,3]
[379489618,1755313755233,-460.47479183,0.00021917,3]
[379489619,1755313755256,-480.0,0.00021917,3]
[379489620,1755313755280,-480.0,0.00021917,3]
[379489621,1755313755305,-460.0,0.00021917,3]
[379489622,1755313755329,-287.59406404,0.00021917,3]
[379489623,1755313755354,-460.0,0.00021917,3]
[379489624,1755313755379,-460.0,0.00021917,3]
[379489625,1755313755403,-480.0,0.00021917,3]
[379489626,1755313755427,-832.54,0.00021917,3]
[379489627,1755313755453,-661.11,0.00021917,3]
[379489628,1755313755477,-832.54,0.00021917,3]
[379489629,1755313755500,-832.54,0.00021917,3]
[379489630,1755313755524,-832.54,0.00021917,3]
[379489631,1755313755548,-832.54,0.00021917,3]
[379489632,1755313755572,-832.54,0.00021917,3]
[379489633,1755313755594,-460.0,0.00021917,3]
[379489634,1755313755615,-466.48295674,0.00021917,3]
[379489635,1755313755637,-480.0,0.00021917,3]
[379489636,1755313755659,-460.0,0.00021917,3]
[379489637,1755313755684,-460.0,0.00021917,3]
[379489638,1755313755710,-536.01,0.00021917,3]
[379489639,1755313755734,-461.19426485,0.00021917,3]
[379489640,1755313755762,-503.19,0.00021917,3]
[379489641,1755313755790,-480.0,0.00021917,3]
[379489642,1755313755816,-460.0,0.00021917,3]
[379489643,1755313755839,-460.0,0.00021917,3]
[379489644,1755313755860,-460.0,0.00021917,3]
[379489645,1755313755883,-460.0,0.00021917,3]
[379489646,1755313755906,-480.0,0.00021917,3]
[379489647,1755313755932,-460.0,0.00021917,3]
[379489648,1755313755956,-480.0,0.00021917,3]
[379489649,1755313755977,-460.5647736,0.00021917,3]
[379489650,1755313756000,-480.0,0.00021917,3]
[379489651,1755313756024,-460.0,0.00021917,3]
[379489652,1755313756048,-461.22695559,0.00021917,3]
[379489653,1755313756069,-460.0,0.00021917,3]
[379489654,1755313756091,-480.0,0.00021917,3]
[379489655,1755313756114,-480.0,0.00021917,3]
[379489656,1755313756136,-480.0,0.00021917,3]
[379489657,1755313756159,-460.0,0.00021917,3]
[379489658,1755313756182,-464.78285376,0.00021917,3]
[379489659,1755313756205,-463.82668898,0.00021917,3]
[379489660,1755313756228,-5508.21,0.00021917,3]
[379489661,1755313756251,-461.46075559,0.00021917,3]
[379489662,1755313756274,-480.0,0.00021917,3]
[379489663,1755313756297,-480.0,0.00021917,3]
[379489664,1755313756320,-463.2434461,0.00021917,3]
[379489665,1755313756343,-460.0,0.00021917,3]
[379489666,1755313756371,-480.0,0.00021917,3]
[379489667,1755313756394,-460.0,0.00021917,3]
[379489668,1755313756416,-460.89232818,0.00021917,3]
[379489669,1755313756438,-460.0,0.00021917,3]
[379489670,1755313756463,-480.0,0.00021917,3]
[379489671,1755313756486,-460.0,0.00021917,3]
[379489672,1755313756513,-462.25673229,0.00021917,3]
[379489673,1755313756540,-480.0,0.00021917,3]
[379489674,1755313756563,-460.0,0.00021917,3]
[379489675,1755313756586,-460.0,0.00021917,3]
[379489676,1755313756609,-598.32,0.00021917,3]
[379489677,1755313756630,-460.0,0.00021917,3]
[379489678,1755313756654,-480.0,0.00021917,3]
[379489679,1755313756679,-3550.91,0.00021917,3]
[379489680,1755313756701,-480.0,0.00021917,3]
[379489681,1755313756723,-542.08,0.00021917,3]
[379489682,1755313756745,-480.0,0.00021917,3]
[379489683,1755313756771,-480.0,0.00021917,3]
[379489684,1755313756793,-460.0,0.00021917,3]
[379489685,1755313756816,-480.0,0.00021917,3]
[379489686,1755313756838,-460.49666946,0.00021917,3]
[379489687,1755313756860,-461.23694967,0.00021917,3]
[379489688,1755313756883,-480.0,0.00021917,3]
[379489689,1755313756906,-480.0,0.00021917,3]
[379489690,1755313756927,-460.0,0.00021917,3]
[379489691,1755313756949,-460.0,0.00021917,3]
[379489692,1755313756971,-823.99,0.00021917,3]
[379489693,1755313756993,-500.0,0.00021917,3]
[379489694,1755313757015,-500.96926008,0.00021917,3]
[379489695,1755313757041,-480.0,0.00021917,3]
[379489696,1755313757064,-460.0,0.00021917,3]
[379489697,1755313757087,-460.38702133,0.00021917,2]
[379489698,1755313757110,-480.0,0.00021917,3]
[379489699,1755313757134,-480.0,0.00021917,3]
[379489700,1755313757157,-480.0,0.00021917,3]
[379489701,1755313757180,-480.0,0.00021917,3]
[379489702,1755313757203,-480.0,0.00021917,3]
[379489703,1755313757228,-480.0,0.00021917,3]
[379489704,1755313757250,-480.0,0.00021917,3]
[379489705,1755313757272,-460.0,0.00021917,3]
[379489706,1755313757297,-480.0,0.00021917,3]
[379489707,1755313757319,-480.0,0.00021917,3]
[379489708,1755313757343,-480.0,0.00021917,3]
[379489709,1755313757365,-480.0,0.00021917,3]
[379489710,1755313757388,-460.0,0.00021917,3]
[379489711,1755313757410,-460.0,0.00021917,3]
[379489712,1755313757431,-480.0,0.00021917,3]
[379489713,1755313757453,-480.0,0.00021917,3]
[379489714,1755313757475,-480.0,0.00021917,3]
[379489715,1755313757497,-480.0,0.00021917,3]
[379489716,1755313757519,-480.0,0.00021917,3]
[379489717,1755313757540,-480.0,0.00021917,3]
[379489718,1755313757562,-462.60006191,0.00021917,3]
[379489719,1755313757584,-460.0,0.00021917,3]
[379489720,1755313757608,-1069.54,0.00021917,3]
[379489721,1755313757630,-460.0,0.00021917,3]
[379489722,1755313757652,-480.0,0.00021917,3]
[379489723,1755313757673,-378.07456645,0.00021917,3]
[379489724,1755313757696,-460.0,0.00021917,3]
[379489725,1755313757718,-460.21875008,0.00021917,3]
[379489726,1755313757741,-480.0,0.00021917,3]
[379489727,1755313758024,-480.0,0.00021917,3]
[379489728,1755313758048,-461.72519018,0.00021917,3]
[379489729,1755313758070,-462.46665702,0.00021917,3]
[379489730,1755313758091,-4750.48,0.00021917,3]
[379489731,1755313758113,-480.0,0.00021917,3]
[379489732,1755313758136,-215.68093138,0.00021917,3]
[379489733,1755313758157,-480.0,0.00021917,3]
[379489734,1755313758179,-480.0,0.00021917,3]
[379489735,1755313758200,-480.0,0.00021917,3]
[379489736,1755313758223,-656.01,0.00021917,3]
[379489737,1755313758244,-460.83838644,0.00021917,3]
[379489738,1755313758266,-460.0,0.00021917,3]
[379489739,1755313758287,-460.85856938,0.00021917,3]
[379489740,1755313758309,-460.0,0.00021917,3]
[379489741,1755313758330,-460.0,0.00021917,3]
[379489742,1755313758352,-480.0,0.00021917,3]
[379489743,1755313758374,-480.0,0.00021917,3]
[379489744,1755313758395,-480.0,0.00021917,3]
[379489745,1755313758415,-480.0,0.00021917,3]
[379489746,1755313758437,-461.91053043,0.00021917,3]
[379489747,1755313758459,-480.0,0.00021917,3]
[379489748,1755313758481,-528.66,0.00021917,3]
[379489749,1755313758503,-12848.97,0.00021917,3]
[379489750,1755313758524,-480.0,0.00021917,3]
[379489751,1755313758546,-460.0,0.00021917,3]
[379489752,1755313758567,-868.27,0.00021917,3]
[379489753,1755313758587,-460.0,0.00021917,3]
[379489754,1755313758608,-480.0,0.00021917,3]
[379489755,1755313758630,-460.0,0.00021917,3]
[379489756,1755313758651,-460.0,0.00021917,3]
[379489757,1755313758674,-501.71,0.00021917,3]
[379489758,1755313758694,-460.0,0.00021917,3]
[379489759,1755313758716,-480.0,0.00021917,3]
[379489760,1755313758737,-480.0,0.00021917,3]
[379489761,1755313758762,-460.0,0.00021917,3]
[379489762,1755313758783,-480.0,0.00021917,3]
[379489763,1755313758803,-461.51272737,0.00021917,3]
[379489764,1755313758825,-460.0,0.00021917,3]
[379489765,1755313758845,-480.0,0.00021917,3]
[379489766,1755313758868,-1750.01512314,0.00021932,2]
[379489767,1755313758890,-92334.51637209,0.0002199,2]
[379489844,1755313838026,-1458.34593595,0.000199,2]
[379489846,1755313838036,-150.0,0.00020345,2]
[379489848,1755313838045,-1458.34593595,0.00020408,2]
[379489850,1755313838055,-1458.34593595,0.00020916,2]
[379489852,1755313838064,-1458.34593595,0.00021424,2]
[379489854,1755313838073,-4109.12331892,0.00021898,2]
[379489856,1755313838083,-300.0,0.00021916,2]
[379489858,1755313838092,-500.0,0.00021916,2]
[379489860,1755313838102,-500.0,0.00021916,2]
[379489862,1755313838112,-500.0,0.00021916,2]
[379489864,1755313838121,-500.0,0.00021916,2]
[379489866,1755313838131,-500.0,0.00021916,2]
[379489868,1755313838141,-412.3920431,0.00021916,2]
[379489870,1755313838151,-500.0,0.00021916,2]
[379489872,1755313838160,-500.0,0.00021916,2]
[379489874,1755313838169,-460.84180821,0.00021917,3]
[379489876,1755313838179,-460.0,0.00021917,3]
[379489878,1755313838189,-480.0,0.00021917,3]
[379489880,1755313838198,-461.42122884,0.00021917,3]
[379489882,1755313838209,-480.0,0.00021917,3]
[379489884,1755313838218,-460.0,0.00021917,3]
[379489886,1755313838227,-628.67,0.00021917,3]
[379489888,1755313838238,-480.0,0.00021917,3]
[379489890,1755313838247,-461.29126223,0.00021917,3]
[379489892,1755313838256,-480.0,0.00021917,3]
[379489894,1755313838267,-460.38180736,0.00021917,3]
[379489896,1755313838277,-480.0,0.00021917,3]
[379489898,1755313838287,-2095.51,0.00021917,3]
[379489900,1755313838296,-460.0,0.00021917,3]
[379489902,1755313838305,-1484.29,0.00021917,3]
[379489904,1755313838315,-480.0,0.00021917,3]
[379489906,1755313838324,-460.0,0.00021917,3]
[379489908,1755313838334,-460.0,0.00021917,3]
[379489910,1755313838343,-460.0,0.00021917,3]
[379489912,1755313838353,-460.0,0.00021917,3]
[379489914,1755313838362,-181.31558033,0.00021917,3]
[379489916,1755313838371,-480.0,0.00021917,3]
[379489918,1755313838381,-460.98662347,0.00021917,3]
[379489921,1755313838391,-462.1417622,0.00021917,3]
[379489923,1755313838401,-480.0,0.00021917,3]
[379489925,1755313838410,-381.74574225,0.00021917,3]
[379489926,1755313838419,-462.0629906,0.00021917,3]
[379489928,1755313838428,-460.0,0.00021917,3]
[379489930,1755313838438,-480.0,0.00021917,3]
[379489932,1755313838447,-460.0,0.00021917,3]
[379489934,1755313838456,-480.0,0.00021917,3]
[379489936,1755313838466,-480.0,0.00021917,3]
[379489937,1755313838475,-460.0,0.00021917,3]
[379489938,1755313838484,-462.11205574,0.00021917,3]
[379489939,1755313838494,-480.0,0.00021917,3]
[379489940,1755313838504,-434.7464283,0.00021917,3]
[379489941,1755313838515,-480.0,0.00021917,3]
[379489942,1755313838524,-500.0,0.00021917,3]
[379489943,1755313838534,-500.0,0.00021917,3]
[379489944,1755313838543,-480.0,0.00021917,3]
[379489945,1755313838553,-500.0,0.00021917,3]
[379489946,1755313838562,-500.0,0.00021917,3]
[379489947,1755313838571,-500.0,0.00021917,3]
[379489948,1755313838581,-633.57,0.00021917,3]
[379489949,1755313838591,-345.42765422,0.00021917,3]
[379489950,1755313838600,-500.0,0.00021917,3]
[379489951,1755313838610,-804.19,0.00021917,3]
[379489952,1755313838619,-513.67,0.00021917,3]
[379489953,1755313838629,-480.0,0.00021917,3]
[379489954,1755313838638,-446.59651606,0.00021917,3]
[379489955,1755313838648,-480.0,0.00021917,3]
[379489957,1755313838657,-460.0,0.00021917,3]
[379489958,1755313838666,-480.0,0.00021917,3]
[379489959,1755313838675,-480.0,0.00021917,3]
[379489961,1755313838685,-480.0,0.00021917,3]
[379489962,1755313838694,-557.63,0.00021917,3]
[379489964,1755313838704,-480.0,0.00021917,3]
[379489966,1755313838713,-480.0,0.00021917,3]
[379489968,1755313838723,-480.0,0.00021917,3]
[379489971,1755313838732,-5278.7,0.00021917,3]
[379489973,1755313838742,-480.0,0.00021917,3]
[379489975,1755313838752,-1458.34593595,0.00021932,2]
[379489977,1755313838761,-500.44020083,0.00021973,2]
[379489979,1755313838771,-7665.48362791,0.0002199,2]
[379489981,1755313838784,-832.54,0.00021998,3]
[379489983,1755313838793,-2888.63,0.00022,7]
[379489985,1755313838802,-250.78,0.00022172,2]
[379489987,1755313838811,-500.0,0.00022173,2]
[379489989,1755313838821,-500.0,0.00022173,2]
[379489991,1755313838830,-212.36449193,0.00022173,2]
[379489993,1755313838840,-500.0,0.00022173,2]
[379489995,1755313838849,-405.59,0.00022181,10]
[379489997,1755313838858,-832.54,0.0002219,3]
[379489998,1755313838867,-832.54,0.0002219,3]
[379490000,1755313838877,-832.54,0.0002219,3]
[379490002,1755313838886,-267.01335788,0.0002219,2]
[379490004,1755313838895,-480.0,0.00022191,3]
[379490006,1755313838904,-441.31275012,0.00022191,3]
[379490008,1755313838914,-480.0,0.00022191,3]
[379490010,1755313838923,-480.0,0.00022191,3]
[379490012,1755313838933,-480.0,0.00022191,3]
[379490014,1755313838942,-588.69644883,0.00022191,3]
[379490016,1755313838952,-480.0,0.00022191,3]
[379490019,1755313838962,-485.8,0.00022191,3]
[379490021,1755313838971,-164.52,0.00022191,3]
[379490023,1755313838981,-524.40769888,0.00022191,3]
[379490025,1755313838990,-480.0,0.00022191,3]
[379490027,1755313839000,-514.84,0.00022191,3]
[379490029,1755313839010,-480.0,0.00022191,3]
[379490031,1755313839020,-585.7558484,0.00022191,3]
[379490033,1755313839029,-480.0,0.00022191,3]
[379490034,1755313839040,-480.0,0.00022191,3]
[379490037,1755313839050,-480.0,0.00022191,3]
[379490038,1755313839059,-480.0,0.00022191,3]
[379490041,1755313839070,-451.97180508,0.00022191,3]
[379490043,1755313839081,-480.0,0.00022191,3]
[379490045,1755313839090,-1000.0,0.00022191,3]
[379490047,1755313839100,-480.0,0.00022191,3]
[379490049,1755313839109,-480.0,0.00022191,3]
[379490051,1755313839119,-480.0,0.00022191,3]
[379490053,1755313839128,-442.56547081,0.00022191,3]
[379490055,1755313839138,-554.00204686,0.00022191,3]
[379490056,1755313839147,-480.0,0.00022191,3]
[379490058,1755313839156,-480.0,0.00022191,3]
[379490060,1755313839165,-480.0,0.00022191,3]
[379490062,1755313839175,-480.0,0.00022191,3]
[379490065,1755313839185,-480.0,0.00022191,3]
[379490066,1755313839194,-480.0,0.00022191,3]
[379490068,1755313839204,-480.0,0.00022191,3]
[379490070,1755313839213,-480.0,0.00022191,3]
[379490072,1755313839223,-480.0,0.00022191,3]
[379490074,1755313839233,-480.0,0.00022191,3]
[379490076,1755313839242,-480.0,0.00022191,3]
[379490078,1755313839251,-480.0,0.00022191,3]
[379490080,1755313839262,-480.0,0.00022191,3]
[379490082,1755313839271,-362.69283602,0.00022191,3]
[379490084,1755313839280,-480.0,0.00022191,3]
[379490086,1755313839290,-480.0,0.00022191,3]
[379490088,1755313839301,-480.0,0.00022191,3]
[379490090,1755313839311,-480.0,0.00022191,3]
[379490092,1755313839320,-480.0,0.00022191,3]
[379490094,1755313839330,-480.0,0.00022191,3]
[379490096,1755313839339,-480.0,0.00022191,3]
[379490099,1755313839350,-480.0,0.00022191,3]
[379490100,1755313839359,-480.0,0.00022191,3]
[379490102,1755313839368,-480.0,0.00022191,3]
[379490104,1755313839378,-670.35,0.00022191,3]
[379490106,1755313839387,-224.16812997,0.00022191,3]
[379490109,1755313839401,-255.83187003,0.00022191,3]
[379490111,1755313839417,-480.0,0.00022191,3]
[379490113,1755313839426,-480.0,0.00022191,3]
[379490115,1755313839435,-480.0,0.00022191,3]
[379490117,1755313839445,-495.76,0.00022191,3]
[379490120,1755313839454,-496.03,0.00022191,3]
[379490122,1755313839463,-480.0,0.00022191,3]
[379490123,1755313839472,-480.0,0.00022191,3]
[379490124,1755313839481,-480.0,0.00022191,3]
[379490125,1755313839490,-501.03,0.00022191,3]
[379490126,1755313839500,-480.0,0.00022191,3]
[379490127,1755313839509,-429.98,0.00022191,3]
[379490128,1755313839520,-480.0,0.00022191,3]
[379490129,1755313839530,-480.0,0.00022191,3]
[379490130,1755313839540,-480.0,0.00022191,3]
[379490131,1755313839549,-480.0,0.00022191,3]
[379490132,1755313839559,-480.0,0.00022191,3]
[379490133,1755313839568,-480.0,0.00022191,3]
[379490134,1755313839577,-480.0,0.00022191,3]
[379490135,1755313839588,-569.54,0.00022191,3]